[Event "2nd Cambridge Open 2024"]
[Site "Cambridge"]
[Date "2024.02.20"]
[Round "3.27"]
[White "Pert, Richard G"]
[Black "Crocker, Philip J"]
[Result "1-0"]
[ECO "D02"]
[WhiteElo "2411"]
[BlackElo "2137"]
[Annotator "RC"]
[PlyCount "103"]
[EventDate "2024.02.18"]
[EventType "swiss"]
[EventCountry "ENG"]
[SourceTitle "playchess.com"]
[Source "ChessBase"]
[SourceQuality "1"]
[TimeControl "5400+30"]

1. d4 {[%emt 0:00:04]} d5 {[%emt 0:00:11]} 2. Nf3 {[%emt 0:00:10]} Nf6 {[%emt 0:00:14]} 3. Bf4 {[%emt 0:00:07]} c5 {[%emt 0:00:48]} 4. e3 {[%emt 0:00:04]} Nc6 {[%emt 0:00:31]} 5. Nbd2 {[%emt 0:00:11]} e6 {[%emt 0:00:43]} 6. c3 {[%emt 0:04:58]} Nh5 {[%emt 0:03:42]} 7. Be5 {[%emt 0:02:56]} f6 {[%emt 0:01:21]} 8. Bg3 {[%emt 0:00:12]} Qb6 {[%emt 0:06:23]} 9. Rb1 {[%emt 0:02:53]} Bd7 {[%emt 0:02:29]} 10. Be2 {[%emt 0:13:09]} Be7 {[%emt 0:01:58]} 11. dxc5 {[%emt 0:10:06]} Bxc5 {[%emt 0:01:48]} 12. b4 {[%emt 0:02:31]} Be7 {[%emt 0:01:40]} 13. c4 {[%emt 0:01:00]} O-O {[%emt 0:08:14]} 14. cxd5 {[%emt 0:04:57]} Nxg3 {[%emt 0:02:40]} 15. hxg3 {[%emt 0:00:56]} exd5 {[%emt 0:00:59]} 16. Nc4 {[%emt 0:09:13]} Bxb4+ {[%emt 0:03:24]} 17. Kf1 {[%emt 0:00:34]} Qc5 {[%emt 0:01:30]} 18. a3 {[%emt 0:02:51]} Ba5 {[%emt 0:14:08]} 19. Rxb7 {[%emt 0:10:10]} Rad8 {[%emt 0:04:07]} 20. Nxa5 {[%emt 0:04:24]} Nxa5 {[%emt 0:00:59]} 21. Rb4 {[%emt 0:00:14]} Nc4 {[%emt 0:43:11]} 22. Rh4 {[%emt 0:06:58]} Be6 {[%emt 0:00:00]} 23. Kg1 {[%emt 0:05:58]} Bf7 {[%emt 0:00:00]} 24. Qc2 {[%emt 0:00:38]} g6 {[%emt 0:00:00]} 25. Qc3 {[%emt 0:00:50]} Qe7 {[%emt 0:00:00]} 26. Rd4 {[%emt 0:04:36]} Ne5 {[%emt 0:00:00]} 27. Rd1 {[%emt 0:00:42]} Rc8 {[%emt 0:00:00]} 28. Qa1 {[%emt 0:00:54]} Rfd8 {[%emt 0:00:00]} 29. Nd4 {[%emt 0:00:07]} Nc6 {[%emt 0:00:00]} 30. Nxc6 {[%emt 0:00:16]} Rxc6 {[%emt 0:00:00]} 31. Bf3 {[%emt 0:00:38]} Rc4 {[%emt 0:00:00]} 32. Qb2 {[%emt 0:02:30]} Rxb4 {[%emt 0:00:00]} 33. axb4 {[%emt 0:01:25]} Qe5 {[%emt 0:00:00]} 34. Qa3 {[%emt 0:00:46]} Rd7 {[%emt 0:00:00]} 35. Rd4 {[%emt 0:02:11]} Kg7 {[%emt 0:00:00]} 36. g4 {[%emt 0:00:22]} Be6 {[%emt 0:00:00]} 37. g3 {[%emt 0:01:52]} Rc7 {[%emt 0:00:00]} 38. Kg2 {[%emt 0:01:38]} Bf7 {[%emt 0:01:30]} 39. Qd3 {[%emt 0:00:41]} Rc4 {[%emt 0:00:54]} 40. Qd2 {[%emt 0:02:35]} Rxd4 {[%emt 0:00:25]} 41. exd4 {[%emt 0:00:11]} Qc7 {[%emt 0:01:07]} 42. g5 {[%emt 0:00:14]} Qc4 {[%emt 0:02:36]} 43. gxf6+ {[%emt 0:00:17]} Kxf6 {[%emt 0:00:03]} 44. Qf4+ {[%emt 0:00:36]} Kg7 {[%emt 0:01:16]} 45. Qe5+ {[%emt 0:00:09]} Kf8 {[%emt 0:01:53]} 46. Qb8+ {[%emt 0:00:37]} Be8 {[%emt 0:00:50]} 47. Qd6+ {[%emt 0:02:00]} Kg7 {[%emt 0:00:24]} 48. Bxd5 {[%emt 0:00:19]} Qxd4 {[%emt 0:00:46]} 49. Qe7+ {[%emt 0:00:05]} Kh6 {[%emt 0:00:13]} 50. Qf8+ {[%emt 0:00:17]} Kg5 {[%emt 0:01:14]} 51. f4+ {[%emt 0:00:20]} Kg4 {[%emt 0:00:45]} 52. Bf3# {[%emt 0:00:41]} 1-0

[Event "2nd Cambridge Open 2024"]
[Site "Cambridge"]
[Date "2024.02.20"]
[Round "3.28"]
[White "Rushbrooke, Remy"]
[Black "Derakhshani, Borna"]
[Result "1-0"]
[ECO "A05"]
[WhiteElo "2049"]
[BlackElo "2369"]
[Annotator "TA"]
[PlyCount "77"]
[EventDate "2024.02.18"]
[EventType "swiss"]
[EventCountry "ENG"]
[SourceTitle "playchess.com"]
[Source "ChessBase"]
[SourceQuality "1"]
[TimeControl "5400+30"]

{[%evp 12,77,28,13,18,10,10,0,0,0,24,0,16,15,11,-13,10,0,5,-3,3,13,38,52,79,83,62,71,76,70,49,72,59,18,77,84,92,82,133,74,131,135,116,117,100,100,121,122,238,252,245,237,387,377,389,410,504,500,398,384,399,250,724,710,1010,1003,5281,2979]} 1. Nf3 {[%emt 0:00:07]} Nf6 {[%emt 0:00:05]} 2. g3 {[%emt 0:00:05]} b5 {[%emt 0:00:04]} 3. Bg2 {[%emt 0:00:33]} Bb7 {[%emt 0:00:05]} 4. O-O {[%emt 0:00:08]} e6 {[%emt 0:00:12]} 5. b3 {[%emt 0:01:27]} c5 {[%emt 0:00:15]} 6. c4 {[%emt 0:02:28]} b4 {[%emt 0:00:55]} 7. Bb2 {[%emt 0:01:42]} Be7 {[%emt 0:00:06]} 8. d4 {[%emt 0:10:04]} cxd4 {[%emt 0:00:06]} 9. Nxd4 {[%emt 0:01:58]} Bxg2 {[%emt 0:00:08] The position is equal.} 10. Kxg2 {[%emt 0:00:01]} O-O {[%emt 0:01:14]} 11. Nd2 {[%emt 0:01:36]} Qb6 {[%emt 0:02:09]} 12. e4 {[%emt 0:16:28]} d6 {[%emt 0:08:08]} 13. Qf3 {[%emt 0:06:36]} Nbd7 {[%emt 0:01:33]} 14. Rfe1 {[%emt 0:01:39]} Rac8 {[%emt 0:04:00]} 15. Nc2 {[%emt 0:07:17]} Rfd8 {[%emt 0:07:03]} 16. Bd4 {[%emt 0:04:22]} Qb8 {[%emt 0:03:17]} 17. a3 {[%emt 0:07:36]} e5 {[%emt 0:08:22]} 18. Be3 {[%emt 0:07:54]} bxa3 {[%emt 0:00:06]} 19. Rxa3 {[%emt 0:01:51]} d5 {[%emt 0:04:48]} 20. exd5 {[%emt 0:00:02] White is more active.} (20. Rxa7 $2 d4 21. Ra5 dxe3 22. Nxe3 Qb4 $19) (20. Bxa7 $6 Qb7 21. Ra5 dxc4 22. Nxc4 h5 $11) 20... Bxa3 {[%emt 0:00:22]} 21. Nxa3 {[%emt 0:00:01]} a6 {[%emt 0:05:15]} 22. Nc2 {[%emt 0:01:04][%mdl 1024] Against Qb4. White has compensation.} Qd6 {[%emt 0:04:39]} (22... a5 $11 {remains equal.}) 23. Bg5 $1 $16 {[%emt 0:01:30] Black is on the road to losing.} Re8 {[%emt 0:01:55][%cal Of6d5]} 24. Ne3 {[%emt 0:02:29]} Qb4 {[%emt 0:02:23]} ({Black should play} 24... g6) 25. Ng4 {[%emt 0:02:02]} (25. Nf5 $142) 25... e4 {[%emt 0:07:04]} 26. Qf5 {[%emt 0:09:14]} Nxg4 {[%emt 0:05:12]} 27. Qxg4 {[%emt 0:00:02]} Ne5 {[%emt 0:02:37]} 28. Qxe4 {[%emt 0:01:19]} f6 {[%emt 0:01:25] [#]} 29. Qd4 $1 {[%emt 0:00:00]} Nxc4 {[%emt 0:07:22]} (29... fxg5 $2 30. Rxe5 h6 (30... Rxe5 $2 31. Qxe5 Rf8 32. Qe3 $18) 31. Nf3 Rxe5 32. Qxe5 $18) (29... Nd7 $16 30. Rxe8+ Rxe8) (29... a5 30. Bf4) 30. Rxe8+ $18 {[%emt 0:00:25]} Rxe8 {[%emt 0:00:02] [#]} 31. Bf4 {[%emt 0:01:26]} (31. Qxc4 $2 Qxc4 32. Nxc4 fxg5 $19) 31... g5 {[%emt 0:00:07]} (31... Ne3+ $142 32. Bxe3 Qxd4 33. Bxd4 Rd8) 32. bxc4 {[%emt 0:02:53][%cal Bb3c4,Bc4c5][%mdl 32]} ({Not} 32. Qxc4 Qxc4 33. bxc4 gxf4 $17) (32. Ne4 $2 Ne3+ (32... Qxb3 $2 33. Nxf6+ Kf7 34. Nxe8 $18) 33. Bxe3 Qxd4 (33... Rxe4 34. Qxf6 Qe7 35. Qxa6 $14) 34. Bxd4 Rxe4 35. Bxf6 Kf7 36. Bxg5 Rb4 $19) 32... gxf4 {[%emt 0:00:06][%mdl 4096] Endgame. KQR-KQN} 33. Ne4 {[%emt 0:00:56]} ({Weaker is} 33. gxf4 Qe7 $14) 33... f3+ {[%emt 0:01:06]} 34. Kxf3 {[%emt 0:00:05]} Rf8 {[%emt 0:00:33]} 35. Kg2 {[%emt 0:00:35][%cal Od5d6] aiming for d6!} (35. Nxf6+ Kg7 36. Kg2 Rxf6 $19) 35... Qe7 {[%emt 0:00:07]} 36. d6 {[%emt 0:01:00]} Qb7 {[%emt 0:00:02]} (36... Qe5 37. Qxe5 fxe5) 37. c5 {[%emt 0:00:56] White is clearly winning.} Qc6 {[%emt 0:00:43]} 38. Kg1 {[%emt 0:01:59]} Kg7 {[%emt 0:00:06] [#]} 39. Nxf6 $1 {[%emt 0:00:50][%mdl 512] Weighted Error Value: White=0.15 (very precise) /Black=0.28 (precise) .  Mistake:       	White=1     	Black=6      Inaccurate:     	White=2     	Black=2      OK:         	White=11    	Black=10     Best:        	White=2     	Black=2      Strong:       	White=2     	---} 1-0

[Event "2nd Cambridge Open 2024"]
[Site "Cambridge"]
[Date "2024.02.20"]
[Round "3.29"]
[White "York-Weaving, Richard"]
[Black "Brett, Andrew R"]
[Result "1-0"]
[ECO "C88"]
[WhiteElo "2343"]
[BlackElo "2072"]
[Annotator "TA"]
[PlyCount "75"]
[EventDate "2024.02.18"]
[EventType "swiss"]
[EventCountry "ENG"]
[SourceTitle "playchess.com"]
[Source "ChessBase"]
[SourceQuality "1"]
[TimeControl "5400+30"]

{[%evp 20,75,32,36,56,26,50,44,44,36,51,43,50,57,48,46,52,25,45,0,0,-27,0,0,0,-12,25,12,32,-76,67,53,109,70,90,27,18,0,0,0,0,0,1,0,51,63,394,427,417,424,420,407,1072,1069,1020,997,29997,29998]} 1. e4 {[%emt 0:00:13]} e5 {[%emt 0:00:03]} 2. Nf3 {[%emt 0:00:25]} Nc6 {[%emt 0:00:12]} 3. Bb5 {[%emt 0:00:08][%cal Bf1b5,Bb5a4,Ba4b3][%mdl 32]} a6 {[%emt 0:00:13]} 4. Ba4 {[%emt 0:00:12]} Nf6 {[%emt 0:00:12]} 5. O-O {[%emt 0:00:25]} Be7 {[%emt 0:00:19]} 6. Re1 {[%emt 0:00:13]} b5 {[%emt 0:00:11]} 7. Bb3 {[%emt 0:00:06]} O-O {[%emt 0:00:19]} 8. a4 {[%emt 0:01:09]} Bb7 {[%emt 0:00:23]} 9. d3 {[%emt 0:01:32]} d6 {[%emt 0:00:54]} 10. Nbd2 {[%emt 0:02:03][%cal Bb1d2,Bd2f1,Bf1g3][%mdl 32]} Qd7 {[%emt 0:01:14]} 11. c3 {[%emt 0:08:37]} h6 {[%emt 0:03:40]} 12. Nf1 {[%emt 0:08:09]} Na5 {[%emt 0:06:30]} 13. Bc2 {[%emt 0:02:21]} c5 {[%emt 0:00:19] White is slightly better.} 14. Ng3 {[%emt 0:02:48]} Rfe8 {[%emt 0:01:07]} 15. d4 {[%emt 0:11:42]} cxd4 {[%emt 0:08:28]} 16. cxd4 {[%emt 0:00:26]} exd4 {[%emt 0:01:57]} 17. Nxd4 {[%emt 0:01:57]} Bf8 {[%emt 0:04:18]} 18. Qf3 {[%emt 0:14:31][%cal Oc1h6]} Nc4 {[%emt 0:32:19]} 19. Ndf5 {[%emt 0:11:21][%cal Of5h6]} (19. Ngf5 {is more complex.} d5 20. Qg3 dxe4 21. Bxh6 g6 22. Qh4) 19... Qe6 {[%emt 0:20:17]} 20. axb5 {[%emt 0:08:21]} axb5 {[%emt 0:00:28]} 21. Rxa8 {[%emt 0:00:06]} Bxa8 {[%emt 0:00:27]} 22. Qe2 {[%emt 0:02:20]} Qc8 {[%emt 0:06:33]} 23. b3 {[%emt 0:02:58] Dodges d5} Ne5 {[%emt 0:00:47]} 24. Qd2 {[%emt 0:06:10]} (24. Ba3 $14 {keeps the upper hand.}) 24... Ng6 {[%emt 0:04:49]} (24... d5 $17) 25. Bb2 $14 {[%emt 0:01:48][%cal Ob2f6] [#] Bxf6! is the strong threat.} (25. Nxd6 $2 {loses.} Bxd6 26. f3 Nd5 $19) 25... Qd8 {[%emt 0:04:17]} ({Black should try} 25... Ne5 $1 $14) 26. h3 {[%emt 0:02:57] White is much more active.} d5 {[%emt 0:01:28]} 27. e5 {[%emt 0:04:02]} (27. Rd1 $16) 27... Ne4 $1 $11 {[%emt 0:00:11]} 28. Nxe4 {[%emt 0:02:33]} (28. Qd1 {is interesting.} Bc5 29. Nxe4 dxe4 30. Qe2) 28... dxe4 {[%emt 0:00:04]} 29. Qxd8 {[%emt 0:00:55]} Rxd8 {[%emt 0:00:07]} 30. Bxe4 {[%emt 0:01:11]} Bb4 {[%emt 0:02:08]} 31. Re3 $36 {[%emt 0:01:16][%mdl 2048] Hoping for Bxa8. White is pushing.} Rd1+ {[%emt 0:00:24]} (31... Bc5 $11 32. Rd3 Rxd3 33. Bxd3 Bxg2) 32. Kh2 $14 {[%emt 0:00:04]} Bd2 $2 {[%emt 0:00:47][%mdl 8192] This move loses the game for Black.} ({Black should play} 32... Bd5 $14) 33. Bxa8 $18 {[%emt 0:01:31]} Bxe3 {[%emt 0:00:12]} 34. fxe3 {[%emt 0:00:45]} ({Not} 34. Nxe3 Rb1 35. Bd4 Rxb3 $18) 34... Nf8 {[%emt 0:01:07]} 35. Bd5 {[%emt 0:01:55] [#] Against Ne6. And now Ne7+ would win.} g6 {[%emt 0:00:38]} (35... Rxd5 $2 {perishes.} 36. Ne7+ Kh7 37. Nxd5 $18) (35... Ne6 $142 36. Bd4 Nxd4 37. exd4 Kf8) 36. Ne7+ {[%emt 0:00:18]} Kh7 {[%emt 0:00:12]} 37. Bxf7 {[%emt 0:00:38]} Rd7 {[%emt 0:00:33]} 38. Bg8+ {[%emt 0:00:09] Weighted Error Value: White=0.20 (precise) /Black=0.77.  Loses game:     	---       	Black=1      Mistake:       	White=2     	Black=4      Inaccurate:     	White=5     	Black=2      OK:         	White=8     	Black=7      Best:        	White=3     	---        Strong:       	---       	Black=1} 1-0

[Event "2nd Cambridge Open 2024"]
[Site "Cambridge"]
[Date "2024.02.20"]
[Round "3.30"]
[White "Gourlay, Iain"]
[Black "Golubovic, Erik"]
[Result "1-0"]
[ECO "D30"]
[WhiteElo "2301"]
[BlackElo "2025"]
[Annotator "TA"]
[PlyCount "79"]
[EventDate "2024.02.18"]
[EventType "swiss"]
[EventCountry "ENG"]
[SourceTitle "playchess.com"]
[Source "ChessBase"]
[SourceQuality "1"]
[TimeControl "5400+30"]

{[%evp 19,79,21,30,-33,0,2,0,-33,-22,-89,-16,-22,50,63,100,93,103,96,91,87,96,-70,-71,-31,-44,-106,120,145,137,137,133,127,133,117,122,115,114,130,188,185,164,139,164,138,156,136,167,167,175,144,160,159,240,240,481,484,29982,29982,29992,29993,29993,29994]} 1. Nf3 {[%emt 0:05:14]} Nf6 {[%emt 0:00:35]} 2. g3 {[%emt 0:00:13]} d5 {[%emt 0:00:05]} 3. Bg2 {[%emt 0:00:13]} e6 {[%emt 0:00:05]} 4. O-O {[%emt 0:00:17]} Be7 {[%emt 0:00:05]} 5. c4 {[%emt 0:00:32]} O-O {[%emt 0:00:08]} 6. b3 {[%emt 0:01:15]} c5 {[%emt 0:00:09]} 7. cxd5 {[%emt 0:01:13]} exd5 {[%emt 0:00:07]} 8. d4 {[%emt 0:00:50]} Nc6 {[%emt 0:00:21]} 9. Bb2 {[%emt 0:00:19]} Ne4 {[%emt 0:00:39]} 10. dxc5 {[%emt 0:03:57]} Bxc5 {[%emt 0:00:12]} 11. Ne1 {[%emt 0:15:02]} (11. Nc3 $11) 11... Re8 {[%emt 0:08:07]} 12. Nd3 {[%emt 0:04:33]} Bb6 {[%emt 0:01:16]} 13. Nf4 {[%emt 0:06:32] The position is equal.} Bg4 {[%emt 0:08:13]} 14. h3 {[%emt 0:20:35]} (14. Bf3 $11 {remains equal.} Bxf3 15. exf3) 14... Nxg3 {[%emt 0:27:48]} (14... Bf5 $17 15. e3 d4 16. exd4 Bxd4 17. Bxd4 Nxd4) 15. hxg4 $11 {[%emt 0:00:29]} Qg5 {[%emt 0:01:05]} (15... Qh4 $11 16. e3 Rxe3) 16. Nh3 $1 $14 {[%emt 0:10:02]} (16. Qxd5 Qxf4 17. Nc3 Rxe2 (17... Nxe2+ $2 18. Nxe2 Rxe2 19. Bc1 $19) (17... Qxg4 $2 18. Qf3 $19) (17... Nxf1 $2 18. Rxf1 Qxg4 19. e3 $19) 18. Nxe2 Nxe2+ 19. Kh1 Bxf2 (19... Qxg4 20. Qf3 $11) 20. Rxf2 Qxf2 $19) (16. e3 Nxf1 (16... Rxe3 $2 17. Nh3 $18) 17. Qxf1 (17. Kxf1 $2 d4 $19) 17... d4 $17 (17... Qxg4 18. Nxd5 Ne5 19. Bxe5 $17)) 16... Qxg4 {[%emt 0:03:46]} 17. e3 {[%emt 0:01:16]} Ne2+ {[%emt 0:01:17]} (17... Nxf1 $2 18. Qxg4 Ne5 19. Bxe5 Rxe5 20. Kxf1 $18 (20. Bxf1 d4 $18)) 18. Kh1 {[%emt 0:02:17][%cal Ob1c3] And now Nc3! would win.} Bxe3 {[%emt 0:03:43]} 19. Nc3 $1 {[%emt 0:04:41]} (19. fxe3 $2 Rxe3 $19) 19... Bd4 {[%emt 0:04:09] [#]} 20. Re1 $2 {[%emt 0:05:17]} Bxc3 $15 {[%emt 0:04:28]} 21. Bxc3 {[%emt 0:00:19] This pair of bishops is nice.} d4 {[%emt 0:01:08]} 22. Bb2 {[%emt 0:01:16]} (22. Bf1 $15) 22... Re6 $2 {[%emt 0:01:44]} (22... Re5 $1 $17 {keeps the pressure on. White must now prevent ...Rae8.} 23. f3 Qe6) 23. f3 $1 $36 {[%emt 0:05:16][%mdl 2048] White has strong initiative.} Ng3+ {[%emt 0:01:38]} 24. Kh2 {[%emt 0:00:16]} Qg6 {[%emt 0:01:59]} 25. Rxe6 {[%emt 0:02:40]} (25. Bxd4 Rd6 26. Qb1 (26. Nf4 $2 Qh6+ 27. Kxg3 Rxd4 $19) 26... Nxd4 (26... Rxd4 $2 27. Qxg6 hxg6 28. Kxg3 $18) 27. Qxg6 Rxg6 $15) 25... fxe6 {[%emt 0:00:54]} 26. Bxd4 {[%emt 0:01:03]} Rd8 {[%emt 0:07:51]} 27. Qe1 {[%emt 0:00:13] Bxa7 is the strong threat.} Nxd4 {[%emt 0:00:59]} 28. Qxg3 {[%emt 0:00:11]} Qf6 {[%emt 0:00:23]} (28... Qxg3+ $16 29. Kxg3 Nf5+ 30. Kf4 h6) 29. Re1 $18 {[%emt 0:01:11]} h6 {[%emt 0:01:45]} 30. Qf4 {[%emt 0:05:09]} Nf5 {[%emt 0:05:02]} 31. Re2 {[%emt 0:01:47]} Kh7 {[%emt 0:02:21]} 32. Qe4 {[%emt 0:00:32]} Qg6 {[%emt 0:02:23]} 33. Qg4 {[%emt 0:00:50]} (33. Qxe6 $2 Qg3+ 34. Kh1 Rd1+ $19) 33... Qf7 {[%emt 0:02:47]} 34. Nf4 {[%emt 0:00:56]} Rd4 {[%emt 0:00:59] [#]} 35. Re4 $1 {[%emt 0:00:43]} (35. Rxe6 Rxf4 36. Qxf4 Qxe6 $17) 35... e5 {[%emt 0:04:26] [#]} (35... Rxe4 $16 36. fxe4 Ne3) 36. Rxd4 $1 {[%emt 0:00:22]} (36. Rxe5 Nd6 37. Re4 (37. Kg3 $2 g5 $17) 37... Nxe4 38. fxe4 Qf6 $14) 36... exd4 $2 {[%emt 0:00:13]} (36... Nxd4 {keeps fighting.} 37. Nd3 Nc6) 37. Bf1 {[%emt 0:00:32] Bd3 would now be deadly.} Ne3 {[%emt 0:05:05]} (37... g6 $18) 38. Bd3+ {[%emt 0:00:11] White mates.} Kg8 {[%emt 0:00:03]} 39. Qc8+ {[%emt 0:00:31]} Qf8 {[%emt 0:00:04] [#]} 40. Bh7+ $1 {[%emt 0:00:22][%mdl 512] Weighted Error Value: White=0.16 (very precise) /Black=0.57.  Mistake:       	White=3     	Black=7      Inaccurate:     	White=1     	Black=2      OK:         	White=6     	Black=8      Best:        	White=7     	Black=3      Strong:       	White=5     	---} 1-0

[Event "2nd Cambridge Open 2024"]
[Site "Cambridge"]
[Date "2024.02.20"]
[Round "3.31"]
[White "Pozzari, Simone"]
[Black "Pert, Nina"]
[Result "1-0"]
[ECO "B12"]
[WhiteElo "2282"]
[BlackElo "1968"]
[Annotator "TA"]
[PlyCount "69"]
[EventDate "2024.02.18"]
[EventType "swiss"]
[EventCountry "ENG"]
[SourceTitle "playchess.com"]
[Source "ChessBase"]
[SourceQuality "1"]
[TimeControl "5400+30"]

{[%evp 10,69,22,20,26,29,40,33,37,29,71,28,35,27,59,52,56,66,120,104,106,100,261,53,97,89,90,0,0,0,74,73,66,76,271,255,412,417,420,421,499,489,812,788,791,693,1379,1138,1493,1397,29991,29992,29992,29992,29993,29994,29994,29995,29995,29996,29996,29997]} 1. e4 {[%emt 0:00:08]} c6 {[%emt 0:00:05]} 2. d4 {[%emt 0:00:11]} d5 {[%emt 0:00:05]} 3. e5 {[%emt 0:00:12]} Bf5 {[%emt 0:00:27]} 4. Nd2 {[%emt 0:00:22]} e6 {[%emt 0:01:38]} 5. Nb3 {[%emt 0:00:08]} Nd7 {[%emt 0:02:42]} 6. Nf3 {[%emt 0:00:09]} h6 {[%emt 0:01:49]} 7. Be2 {[%emt 0:00:44]} Qc7 {[%emt 0:02:04]} 8. O-O {[%emt 0:01:12]} Ne7 {[%emt 0:02:18] White is slightly better.} 9. a4 {[%emt 0:00:38]} c5 {[%emt 0:02:16]} 10. dxc5 {[%emt 0:01:25]} Nc6 {[%emt 0:04:12][%cal Of5e4]} 11. Be3 {[%emt 0:04:50]} Ndxe5 {[%emt 0:03:30]} 12. Nxe5 {[%emt 0:06:22]} Qxe5 {[%emt 0:03:03]} 13. Nd4 {[%emt 0:03:06]} Bh7 {[%emt 0:04:33]} (13... Be4 $14) 14. Bb5 {[%emt 0:06:35]} Qc7 {[%emt 0:02:56][%cal Of8e7]} 15. c4 {[%emt 0:07:30]} dxc4 {[%emt 0:12:24] [#]} (15... Be7 $16) 16. Bf4 $2 {[%emt 0:02:07]} Qc8 {[%emt 0:06:48]} 17. Qf3 {[%emt 0:04:20][%cal Rd4c6]} a6 {[%emt 0:05:11]} 18. Nxc6 {[%emt 0:08:32]} (18. Bxc6+ $16 bxc6 19. Rfc1 (19. Nxc6 Qb7 $14)) 18... axb5 $11 {[%emt 0:00:07]} 19. Ne5 $36 {[%emt 0:01:06][%cal Bc6e5,Be5c4,Bc4d6][%mdl 2080] White is more active.} bxa4 {[%emt 0:07:45]} (19... Rxa4 20. Rad1 Bg6 (20... Qxc5 21. Qxb7) (20... Bxc5 $2 21. Bxh6 O-O 22. Qg4 $18) 21. Nxg6 fxg6 22. Be5 $16) (19... Bxc5 $11 20. Bxh6 O-O) 20. Nxc4 {[%emt 0:00:41] White is much more active.} Qc6 {[%emt 0:04:51] Black is weak on the dark squares} 21. Qg3 {[%emt 0:01:05][%mdl 1024] And now Rac1 would win. White has compensation.} Be4 $2 {[%emt 0:05:27]} (21... f6 $16) 22. Rac1 {[%emt 0:02:39]} Bd5 $2 {[%emt 0:04:27] [#]} (22... Rg8 23. Nd6+ Ke7) 23. Nd6+ $1 $18 {[%emt 0:01:23]} ({Less strong is} 23. Nb6 Rd8 $16) 23... Ke7 {[%emt 0:00:14][%cal Be8e7,Be7f6,Bf6g6,Bg6h5,Bh5h4,Bh4g4][%mdl 32]} 24. Qh4+ {[%emt 0:03:37]} f6 {[%emt 0:02:11][%cal Oh6h5]} 25. Qh5 {[%emt 0:00:21] Hoping for Rfd1.} e5 {[%emt 0:00:06] [#]} (25... Kd7 $142 26. Rfd1 (26. Qf7+ Be7 $18) 26... a3 27. Qf7+ Be7) 26. Bxe5 $1 {[%emt 0:02:15][%mdl 512] aiming for Bg3.} g6 {[%emt 0:04:30][%cal Bg7g6,Bg6g5][%mdl 32]} 27. Qe2 {[%emt 0:00:56][%cal Of1e1] Strongly threatening Rfe1!} ({Weaker is} 27. Qxg6 fxe5 28. Rfe1 Rg8 (28... Kd7 $2 29. Qf5+ Be6 30. Qxe5 $18) 29. Rxe5+ Kd8 30. Qe8+ Qxe8 31. Rxe8+ Kd7 32. Rxa8 Rxg2+ 33. Kf1 Bxd6 $18) 27... Bg7 {[%emt 0:01:25] [#]} 28. Bxf6+ {[%emt 0:02:03][%mdl 512]} Kxf6 {[%emt 0:00:29]} 29. Rfe1 {[%emt 0:00:06][%csl Ge1][%cal Re2e5]} g5 {[%emt 0:02:58]} 30. Qe5+ {[%emt 0:01:10] White mates.} Kg6 {[%emt 0:00:07]} 31. Qf5+ {[%emt 0:00:03]} Kh5 {[%emt 0:00:06]} 32. Re3 {[%emt 0:01:08][%cal Re3h3]} Bxg2 {[%emt 0:00:33]} 33. Qf7+ {[%emt 0:00:16]} Kh4 {[%emt 0:00:16]} 34. Nf5+ {[%emt 0:00:18]} Kg4 {[%emt 0:00:06]} 35. Rc4+ {[%emt 0:40:22] Weighted Error Value: White=0.27 (precise) /Black=0.82.  Loses game:     	---       	Black=2      Missed win:     	White=1     	---        Mistake:       	White=1     	Black=4      Inaccurate:     	White=1     	Black=3      OK:         	White=7     	Black=4      Best:        	White=1     	Black=3      Strong:       	White=1     	---        Brilliant:      	White=1     	---} 1-0

[Event "2nd Cambridge Open 2024"]
[Site "Cambridge"]
[Date "2024.02.20"]
[Round "3.32"]
[White "Bradbury, Neil H"]
[Black "Homer, Stephen J"]
[Result "1-0"]
[ECO "E11"]
[WhiteElo "2217"]
[BlackElo "2045"]
[Annotator "RC"]
[PlyCount "58"]
[EventDate "2024.02.18"]
[EventType "swiss"]
[EventCountry "ENG"]
[SourceTitle "playchess.com"]
[Source "ChessBase"]
[SourceQuality "1"]
[TimeControl "5400+30"]

1. d4 {[%emt 0:00:18]} Nf6 {[%emt 0:00:02]} 2. c4 {[%emt 0:00:41]} e6 {[%emt 0:00:02]} 3. Nf3 {[%emt 0:00:15]} Bb4+ {[%emt 0:00:02]} 4. Nbd2 {[%emt 0:00:47]} O-O {[%emt 0:00:04]} 5. a3 {[%emt 0:00:48]} Be7 {[%emt 0:00:07]} 6. e4 {[%emt 0:03:21]} d6 {[%emt 0:00:31]} 7. Be2 {[%emt 0:05:14]} Nbd7 {[%emt 0:08:17]} 8. O-O {[%emt 0:06:54]} e5 {[%emt 0:06:41]} 9. b4 {[%emt 0:06:45]} exd4 {[%emt 0:13:42]} 10. Nxd4 {[%emt 0:00:08]} Re8 {[%emt 0:03:19]} 11. Bb2 {[%emt 0:11:30]} Bf8 {[%emt 0:00:19]} 12. Qc2 {[%emt 0:00:31]} c5 {[%emt 0:02:09]} 13. Nf5 {[%emt 0:05:41]} cxb4 {[%emt 0:25:09]} 14. axb4 {[%emt 0:00:05]} d5 {[%emt 0:00:06]} 15. cxd5 {[%emt 0:09:17]} g6 {[%emt 0:00:04]} 16. Ng3 {[%emt 0:02:19]} Bxb4 {[%emt 0:00:38]} 17. Nf3 {[%emt 0:06:19]} Qe7 {[%emt 0:09:09]} 18. Bd3 {[%emt 0:08:43]} Ng4 {[%emt 0:03:50]} 19. Bb5 {[%emt 0:01:45]} Rd8 {[%emt 0:07:17]} 20. h3 {[%emt 0:01:50]} Nge5 {[%emt 0:01:14]} 21. Nd4 {[%emt 0:00:29]} Nb6 {[%emt 0:03:13]} 22. f4 {[%emt 0:05:46]} Qh4 {[%emt 0:07:18]} 23. fxe5 {[%emt 0:07:59]} Qxg3 {[%emt 0:00:04]} 24. Rf3 {[%emt 0:00:10]} Qg5 {[%emt 0:01:18]} 25. Raf1 {[%emt 0:02:45]} Rf8 {[%emt 0:00:39]} 26. e6 {[%emt 0:02:03]} fxe6 {[%emt 0:00:29]} 27. Qc7 {[%emt 0:01:39]} Rxf3 {[%emt 0:01:13]} 28. Nxf3 {[%emt 0:02:20]} Qe7 {[%emt 0:00:32]} 29. Qe5 {[%emt 0:00:19]} Qd8 {[%emt 0:06:39]} 1-0